bitfinex/quotes_BTCUSD_20240730
["timestamp","ask_amount","ask_price","bid_price","bid_amount"]
[1722304420816,0.19953253,66221.0,66220.0,0.604045]
[1722304421394,0.20153253,66221.0,66220.0,0.362427]
[1722304421600,0.13880389,66221.0,66220.0,0.362427]
[1722304421941,0.20153942,66221.0,66220.0,0.604045]
[1722304422168,0.19153942,66221.0,66220.0,0.362427]
[1722304422305,0.20153942,66221.0,66220.0,0.362427]
[1722304422507,0.19153942,66221.0,66220.0,0.362427]
[1722304422737,0.18953942,66221.0,66220.0,0.362427]
[1722304423310,0.20153942,66221.0,66220.0,0.362427]
[1722304423912,0.19953942,66221.0,66220.0,0.362427]
[1722304424111,0.18953942,66221.0,66220.0,0.362427]
[1722304424313,0.18953942,66221.0,66220.0,0.604045]
[1722304424314,0.16585476,66221.0,66220.0,0.604045]
[1722304424741,0.15850525,66221.0,66220.0,0.604045]
[1722304425339,0.16850525,66221.0,66220.0,0.604045]
[1722304425567,0.17050525,66221.0,66220.0,0.604045]
[1722304425760,0.17786527,66221.0,66220.0,0.362427]
[1722304425964,0.17586527,66221.0,66220.0,0.362427]
[1722304426149,0.16586527,66221.0,66220.0,0.604045]
[1722304426549,0.15850525,66221.0,66220.0,0.604045]
[1722304427549,0.16850525,66221.0,66220.0,0.604045]
[1722304427750,0.09576972,66221.0,66220.0,0.604045]
[1722304427988,0.17584433,66221.0,66220.0,0.604045]
[1722304428189,0.14850162,66221.0,66220.0,0.604045]
[1722304428366,0.17084433,66221.0,66220.0,0.604045]
[1722304428733,0.17084433,66221.0,66220.0,0.99629604]
[1722304428734,0.00817271,66221.0,66220.0,0.99629604]
[1722304429067,0.00083,66221.0,66220.0,0.99629604]
[1722304432105,0.02451425,66221.0,66220.0,0.99629604]
[1722304433321,0.00083,66221.0,66220.0,0.99629604]
[1722304433948,0.00083,66221.0,66220.0,0.75467804]
[1722304433949,0.06356119,66221.0,66220.0,0.75467804]
[1722304434182,0.00083,66221.0,66220.0,0.75467804]
[1722304434404,0.16002256,66221.0,66220.0,0.75467804]
[1722304434585,0.22275253,66221.0,66220.0,0.75467804]
[1722304434998,0.23016882,66221.0,66220.0,0.75467804]
[1722304435197,0.17016882,66221.0,66220.0,0.75467804]
[1722304435752,0.17014845,66221.0,66220.0,0.99629604]
[1722304436053,0.17014845,66221.0,66220.0,0.75467804]
[1722304436256,0.16014845,66221.0,66220.0,0.75467804]
[1722304436465,0.17014845,66221.0,66220.0,0.75467804]
[1722304436613,0.16014845,66221.0,66220.0,0.99629604]
[1722304437225,0.01781848,66221.0,66220.0,0.99629604]
[1722304437424,0.01042256,66221.0,66220.0,0.99629604]
[1722304437603,0.07315414,66221.0,66220.0,1.07363102]
[1722304437787,0.03410783,66221.0,66220.0,1.07363102]
[1722304437993,0.02451527,66221.0,66220.0,1.07363102]
[1722304438193,0.03410783,66221.0,66220.0,1.07363102]
[1722304438418,0.08724223,66221.0,66220.0,1.17363102]
[1722304438618,0.02451527,66221.0,66220.0,1.32193102]
[1722304438799,0.02451527,66221.0,66220.0,1.56354902]
[1722304439399,0.00083,66221.0,66220.0,1.56354902]
[1722304440300,0.00083,66221.0,66220.0,1.56377505]
[1722304442418,0.02451354,66221.0,66220.0,1.56276417]
[1722304443050,0.02451354,66221.0,66220.0,1.33791404]
[1722304443264,0.02451354,66221.0,66220.0,1.17284611]
[1722304443640,0.0441061,66221.0,66220.0,0.99629604]
[1722304443889,0.0341061,66221.0,66220.0,0.99629604]
[1722304444196,0.02451354,66221.0,66220.0,0.99629604]
[1722304444531,0.0341061,66221.0,66220.0,1.07260405]
[1722304444739,0.0541061,66221.0,66220.0,0.99629604]
[1722304444944,0.02451354,66221.0,66220.0,0.99629604]
[1722304445145,0.02451354,66221.0,66220.0,1.07260215]
[1722304445371,0.00083,66221.0,66220.0,1.07260215]
[1722304445646,0.00083,66221.0,66220.0,1.31438519]
[1722304446456,0.00083,66221.0,66220.0,1.41438519]
[1722304447033,0.00083,66221.0,66220.0,1.17276719]
[1722304448657,0.02451416,66221.0,66220.0,1.09629604]
[1722304448858,0.02451416,66221.0,66220.0,1.17276873]
[1722304451066,1.6e-07,66222.0,66221.0,0.84414444]
[1722304451251,0.00959256,66241.0,66240.0,0.603862]
[1722304451386,0.00959256,66241.0,66240.0,1.02598764]
[1722304451569,0.00959256,66241.0,66240.0,1.36753264]
[1722304451570,0.00749569,66241.0,66240.0,1.36753264]
[1722304451773,0.01,66245.0,66244.0,0.845358]
[1722304452032,0.01,66245.0,66244.0,0.99599104]
[1722304452211,0.03159256,66248.0,66247.0,0.6038]
[1722304452476,0.03159256,66248.0,66247.0,0.78438064]
[1722304452734,0.09429731,66248.0,66247.0,0.78438064]
[1722304453277,0.09429731,66248.0,66247.0,0.6337476]
[1722304453712,0.012,66248.0,66247.0,1.02590064]
[1722304454251,0.03159256,66248.0,66247.0,1.02590064]
[1722304454606,0.10669256,66248.0,66247.0,0.8752676]
[1722304454810,0.03159256,66248.0,66247.0,1.02590064]
[1722304455619,0.022,66248.0,66247.0,1.02590064]
[1722304455986,0.03159256,66248.0,66247.0,1.02590064]
[1722304456197,0.07534716,66258.0,66248.0,0.241516]
[1722304456405,0.07534716,66258.0,66257.0,0.362224]
[1722304456602,0.07534716,66258.0,66257.0,1.02577064]
[1722304458965,0.07534716,66258.0,66257.0,1.36725364]
[1722304459399,0.07534716,66258.0,66257.0,1.51285364]
[1722304459622,0.07534716,66258.0,66257.0,1.58934214]
[1722304459864,0.02366948,66258.0,66257.0,1.51326108]
[1722304460306,0.01851,66267.0,66264.0,0.1]
[1722304460529,0.01851,66267.0,66266.0,0.362176]
[1722304460530,0.00851,66267.0,66266.0,0.362176]
[1722304460749,0.00851,66267.0,66266.0,0.99571104]
[1722304460971,0.01851,66267.0,66266.0,0.99571104]
[1722304461220,0.03810256,66267.0,66266.0,0.75426004]
[1722304461448,0.02810256,66267.0,66266.0,0.75426004]
[1722304461672,0.02810256,66267.0,66266.0,0.99571104]
[1722304461673,0.03810256,66267.0,66266.0,0.99571104]
[1722304462746,0.02810256,66267.0,66266.0,0.99571104]
[1722304462949,0.02851,66267.0,66266.0,0.99571104]
[1722304463181,0.02810256,66267.0,66266.0,0.99571104]
[1722304463564,0.00851,66267.0,66266.0,0.99571104]
[1722304464308,0.01851,66267.0,66266.0,0.99571104]
[1722304465000,0.00851,66267.0,66266.0,0.99571104]
[1722304465945,0.00851,66267.0,66266.0,1.47646948]
[1722304466423,0.00851,66267.0,66266.0,1.60667948]
[1722304466641,0.00851,66267.0,66266.0,1.57646948]
[1722304467530,0.00851,66272.0,66271.0,0.94541944]
[1722304467769,0.00851,66289.0,66284.0,0.36248444]
[1722304467984,0.00851,66289.0,66284.0,1.26722008]
[1722304468207,0.00851,66289.0,66284.0,1.53160508]
[1722304468445,0.00851,66289.0,66287.0,1.08659044]
[1722304468661,1e-06,66289.0,66288.0,0.56246244]
[1722304468917,0.00851,66293.0,66288.0,0.56246244]
[1722304468918,1e-06,66293.0,66292.0,0.15129544]
[1722304469122,1e-06,66293.0,66292.0,1.17894408]
[1722304469349,1e-06,66293.0,66292.0,1.80055608]
[1722304469602,1e-06,66293.0,66292.0,1.55920008]
[1722304470046,1e-06,66293.0,66292.0,1.80055608]
[1722304470272,0.4753,66312.0,66310.0,0.320645]
[1722304470496,0.08331073,66311.0,66310.0,0.98380564]
[1722304470730,0.07534716,66311.0,66310.0,1.12509564]
[1722304471038,0.07534716,66311.0,66310.0,0.78380564]
[1722304471039,0.10493972,66311.0,66310.0,0.78380564]
[1722304471230,0.11332506,66311.0,66310.0,0.78380564]
[1722304471488,0.13697719,66311.0,66310.0,0.30122564]
[1722304471724,0.13697719,66311.0,66310.0,0.54251564]
[1722304471943,0.13697719,66311.0,66310.0,0.78380564]
[1722304472155,0.12697719,66311.0,66310.0,0.54251564]
[1722304472396,0.13897719,66311.0,66310.0,0.18058064]
[1722304472619,0.12897719,66311.0,66310.0,0.18058064]
[1722304473107,0.13897719,66311.0,66310.0,0.30122564]
[1722304473361,0.13897719,66311.0,66310.0,0.78380564]
[1722304473362,0.10738463,66311.0,66310.0,0.78380564]
[1722304473623,0.11738463,66311.0,66310.0,0.54251564]
[1722304473839,0.13697719,66311.0,66310.0,0.30122564]
[1722304474284,0.13697719,66311.0,66310.0,0.54251564]
[1722304474830,0.13897719,66311.0,66310.0,0.78380564]
[1722304475021,0.03203747,66311.0,66310.0,0.78380564]
[1722304475237,0.00838534,66311.0,66310.0,0.78380564]
[1722304475436,0.03809256,66313.0,66312.0,0.603207]
[1722304475640,0.03809256,66313.0,66312.0,0.75384004]
[1722304475866,0.02809256,66313.0,66312.0,0.75384004]
[1722304476487,0.01809256,66313.0,66312.0,0.75384004]
[1722304476658,0.02809256,66313.0,66312.0,0.75384004]
[1722304476859,0.02809256,66313.0,66312.0,0.99512304]
[1722304477686,0.03809256,66313.0,66312.0,0.99512304]
[1722304478013,0.02809256,66313.0,66312.0,0.75384004]
[1722304478702,0.05174516,66313.0,66312.0,0.75384004]
[1722304478905,0.02809256,66313.0,66312.0,0.75384004]
[1722304480144,0.02809256,66313.0,66312.0,0.99512304]
[1722304480803,0.0185,66313.0,66312.0,0.99512304]
[1722304481208,0.02809256,66313.0,66312.0,0.99512304]
[1722304482294,0.05174495,66313.0,66312.0,0.99512304]
[1722304482693,0.0606705,66313.0,66312.0,0.75384004]
[1722304482909,0.0606705,66313.0,66305.0,0.120654]
[1722304482910,0.01,66306.0,66305.0,0.120654]
[1722304483074,0.01,66306.0,66305.0,0.30123464]
[1722304483276,0.01,66306.0,66305.0,0.78385164]
[1722304483277,0.01959256,66306.0,66305.0,0.78385164]
[1722304483498,0.01959256,66306.0,66305.0,1.06623864]
[1722304484872,0.00959256,66312.0,66305.0,0.22165864]
[1722304485070,0.0085,66313.0,66312.0,0.120641]
[1722304485273,0.0085,66313.0,66312.0,0.78378764]
[1722304485467,0.0085,66313.0,66312.0,1.02507064]
[1722304485899,0.0185,66313.0,66312.0,1.02507064]
[1722304486229,0.01809256,66313.0,66312.0,1.02507064]
[1722304486433,0.02809256,66313.0,66312.0,1.02507064]
[1722304486665,0.01809256,66313.0,66312.0,1.02507064]
[1722304486791,0.04174422,66313.0,66312.0,1.02507064]
[1722304487402,0.05174422,66313.0,66312.0,1.02507064]
[1722304487601,0.05174422,66313.0,66312.0,0.78378764]
[1722304487806,0.04174422,66313.0,66312.0,0.78378764]
[1722304488015,0.20674422,66313.0,66312.0,0.0299476]
[1722304488295,0.19674422,66313.0,66312.0,0.0299476]
[1722304488494,0.18309256,66313.0,66312.0,0.1505886]
[1722304488909,0.24574171,66313.0,66312.0,0.6331546]
[1722304489112,0.19200683,66313.0,66312.0,0.6331546]
[1722304489794,0.01741427,66313.0,66312.0,1.02507064]
[1722304490180,0.0085,66313.0,66312.0,1.02507064]
[1722304490380,0.0185,66313.0,66312.0,0.75384004]
[1722304490914,0.03809256,66313.0,66312.0,0.99512304]
[1722304491303,0.02809256,66313.0,66312.0,0.99512304]
[1722304491498,0.01809256,66313.0,66312.0,0.99512304]
[1722304491797,0.04174475,66313.0,66312.0,0.99512304]
[1722304491997,0.06174475,66313.0,66312.0,0.99512304]
[1722304492177,0.04174475,66313.0,66312.0,0.99512304]
[1722304492326,0.06174475,66313.0,66312.0,0.99512304]
[1722304492527,0.04174475,66313.0,66312.0,0.99512304]
[1722304492718,0.06174475,66313.0,66312.0,0.99512304]
[1722304492918,0.04174475,66313.0,66312.0,0.99512304]
[1722304493894,0.06174475,66313.0,66312.0,0.99512304]
[1722304494249,0.04174475,66313.0,66312.0,0.99512304]
[1722304494445,0.10438621,66313.0,66312.0,0.99512304]
[1722304494826,0.08965038,66313.0,66312.0,0.99512304]
[1722304495041,0.01741636,66313.0,66312.0,0.99512304]
[1722304495244,0.08965014,66313.0,66312.0,0.99512304]
[1722304495464,0.01809256,66313.0,66312.0,0.99512304]
[1722304495667,0.10073378,66313.0,66312.0,0.99512304]
[1722304496071,0.08073378,66313.0,66312.0,0.99512304]
[1722304496319,0.10073378,66313.0,66312.0,0.99512304]
[1722304496507,0.08073378,66313.0,66312.0,0.99512304]
[1722304496710,0.08966014,66313.0,66312.0,0.99512304]
[1722304496914,0.10966014,66313.0,66312.0,0.99512304]
[1722304497111,0.09966014,66313.0,66312.0,0.99512304]
[1722304497569,0.1900167,66313.0,66312.0,0.99512304]
[1722304497716,0.09073378,66313.0,66312.0,0.99512304]
[1722304497920,0.03702819,66313.0,66312.0,0.99512304]
[1722304498143,0.02809256,66313.0,66312.0,0.99512304]
[1722304498405,0.124389,66313.0,66312.0,0.99512304]
[1722304498569,0.100737,66313.0,66312.0,0.99512304]
[1722304498907,0.10967263,66313.0,66312.0,0.99512304]
[1722304499777,0.09967263,66313.0,66312.0,0.99512304]
[1722304500339,0.10967263,66313.0,66312.0,0.99512304]
[1722304500544,0.09967263,66313.0,66312.0,0.99512304]
[1722304500747,0.08967263,66313.0,66312.0,0.99512304]
[1722304500952,0.02702819,66313.0,66312.0,0.99512304]
[1722304501150,0.0896715,66313.0,66312.0,0.99512304]
[1722304501375,0.08073587,66313.0,66312.0,0.99512304]
[1722304501595,0.10966529,66313.0,66312.0,0.99512304]
[1722304501802,0.1333171,66313.0,66312.0,0.99512304]
[1722304502159,0.11166529,66313.0,66312.0,0.99512304]
[1722304502411,0.10966529,66313.0,66312.0,0.99512304]
[1722304502725,0.09966529,66313.0,66312.0,0.99512304]
[1722304503309,0.02809256,66313.0,66312.0,0.99512304]
[1722304503508,0.09073409,66313.0,66312.0,0.99512304]
[1722304503921,0.15337544,66313.0,66312.0,0.99512304]
[1722304504336,0.16230438,66313.0,66312.0,0.99512304]
[1722304504845,0.18595591,66313.0,66312.0,0.99512304]
[1722304505630,0.17595591,66313.0,66312.0,0.99512304]
[1722304506036,0.18595591,66313.0,66312.0,0.99512304]
[1722304506242,0.17595591,66313.0,66312.0,0.99512304]
[1722304506436,0.12331456,66313.0,66312.0,0.99512304]
[1722304506662,0.09966303,66313.0,66312.0,0.99512304]
[1722304506886,0.15337441,66313.0,66312.0,0.99512304]
[1722304507089,0.07114032,66313.0,66312.0,0.99512304]
[1722304507288,0.08007861,66313.0,66312.0,0.99512304]
[1722304507449,0.07114032,66313.0,66312.0,1.23640604]
[1722304508542,0.07114032,66313.0,66312.0,1.31595278]
[1722304508675,0.08114032,66313.0,66312.0,1.07466978]
[1722304508904,0.09073288,66313.0,66312.0,0.99512304]
[1722304509887,0.11438412,66313.0,66312.0,0.99512304]
[1722304510095,0.12438412,66313.0,66312.0,0.99512304]
[1722304510306,0.05174381,66313.0,66312.0,0.99512304]
[1722304510509,0.12438417,66313.0,66312.0,0.75384004]
[1722304510720,0.20632655,66313.0,66312.0,0.75384004]
[1722304510921,0.21528282,66313.0,66312.0,0.75384004]
[1722304511427,0.21528282,66313.0,66309.0,0.241293]
[1722304511428,0.21528282,66313.0,66305.0,0.40304]
[1722304511429,0.02959256,66306.0,66305.0,0.40304]
[1722304511628,0.16758008,66306.0,66305.0,0.82492964]
[1722304511739,0.10493972,66306.0,66305.0,1.06623864]
[1722304511948,0.14758954,66306.0,66305.0,1.06623864]
[1722304512353,0.14758954,66306.0,66305.0,1.14743265]
[1722304512813,0.08493972,66306.0,66305.0,1.14742826]
[1722304512961,0.16758495,66306.0,66305.0,1.14742826]
[1722304513173,0.15758495,66306.0,66305.0,1.14742826]
[1722304513365,0.14758495,66306.0,66305.0,1.15825969]
[1722304513568,0.15758495,66306.0,66305.0,1.15825969]
[1722304514043,0.06264523,66306.0,66305.0,1.39956869]
[1722304514230,0.0185,66313.0,66312.0,0.84449]
[1722304514352,0.0085,66313.0,66312.0,1.10626026]
[1722304514559,0.07114115,66313.0,66312.0,1.10626026]
[1722304514760,0.07094873,66313.0,66312.0,1.10626026]
[1722304515199,0.0946006,66313.0,66312.0,1.10626026]
[1722304515400,0.07094873,66313.0,66312.0,1.10626026]
[1722304515957,0.00830758,66313.0,66312.0,1.10556344]
[1722304516117,0.07094955,66313.0,66312.0,1.10556344]
[1722304517828,0.07094955,66313.0,66312.0,0.54250464]
[1722304517829,0.10149411,66313.0,66312.0,0.54250464]
[1722304518055,0.10149411,66313.0,66312.0,0.6331546]
[1722304518056,0.25742058,66313.0,66312.0,0.6331546]
[1722304518268,0.31352058,66313.0,66312.0,0.6331546]
[1722304518478,0.35803595,66313.0,66312.0,0.3918716]
[1722304518633,0.35803595,66313.0,66312.0,0.6331546]
[1722304518859,0.31906394,66313.0,66312.0,0.6331546]
[1722304519059,0.38171081,66313.0,66312.0,0.6331546]
[1722304519263,0.38171081,66313.0,66312.0,0.0299476]
[1722304519472,0.11039256,66305.0,66291.0,0.03021]
[1722304519737,0.57865249,66305.0,66304.0,0.0308606]
[1722304519930,0.57562898,66305.0,66304.0,0.0308606]
[1722304520068,0.68694101,66305.0,66304.0,0.0308606]
[1722304520273,0.81893798,66305.0,66304.0,0.0308606]
[1722304520476,1.40441646,66305.0,66304.0,0.000913]
[1722304520681,0.79353664,66305.0,66304.0,0.000913]
[1722304520885,0.68628298,66305.0,66304.0,0.000913]
[1722304521111,1.18090098,66305.0,66304.0,0.000913]
[1722304521305,1.19090098,66305.0,66304.0,0.000913]
[1722304521508,1.71045643,66305.0,66304.0,0.000913]
[1722304521710,1.97625111,66305.0,66304.0,0.000913]
[1722304521912,1.96860362,66305.0,66304.0,0.000913]
[1722304522132,2.11939695,66305.0,66304.0,0.000913]
[1722304522330,2.13939695,66305.0,66304.0,0.000913]
[1722304522531,2.13939695,66305.0,66269.0,0.46216]
[1722304522532,0.00959256,66270.0,66269.0,0.46216]
[1722304522733,0.00959256,66270.0,66269.0,0.6531271]
[1722304522734,0.02959256,66270.0,66269.0,0.6531271]
[1722304522940,0.03159256,66270.0,66269.0,0.8945671]
[1722304523112,0.03325743,66270.0,66269.0,1.1560071]
[1722304523335,0.04325743,66270.0,66269.0,1.1560071]
[1722304523581,0.01959256,66270.0,66269.0,1.1560071]
[1722304524207,0.02959256,66270.0,66269.0,0.9145671]
[1722304524411,0.02959256,66270.0,66269.0,0.90418064]
[1722304524562,0.01959256,66270.0,66269.0,0.90418064]
[1722304524963,0.03159256,66270.0,66269.0,0.80418064]
[1722304525352,0.02959256,66270.0,66269.0,0.80418064]
[1722304525685,0.03159256,66270.0,66269.0,0.56274064]
[1722304525891,0.01959256,66270.0,66269.0,0.80418064]
[1722304526433,0.02959256,66270.0,66269.0,0.80418064]
[1722304526631,0.02159256,66270.0,66269.0,0.80418064]
[1722304526808,0.0452592,66270.0,66269.0,0.80418064]
[1722304527010,0.02159256,66270.0,66269.0,0.80418064]
[1722304527227,0.03159256,66270.0,66269.0,0.80418064]
[1722304527430,0.03159256,66270.0,66269.0,0.3921076]
[1722304527778,0.11119256,66270.0,66269.0,0.0299476]
[1722304527974,0.03159256,66266.0,66265.0,0.362179]
[1722304528177,0.03159256,66266.0,66265.0,0.3921266]
[1722304528378,0.03159256,66266.0,66265.0,0.1506746]
[1722304528527,0.03159256,66266.0,66265.0,0.0299476]
[1722304528726,0.03991722,66266.0,66265.0,0.1506746]
[1722304528927,0.03991722,66266.0,66265.0,0.3921286]
[1722304530092,0.03159256,66266.0,66265.0,0.3921286]
[1722304531164,0.05526196,66266.0,66265.0,0.3921286]
[1722304531377,0.06337367,66266.0,66265.0,0.3921286]
[1722304531578,0.01770427,66266.0,66265.0,1.02566964]
[1722304531742,0.01959256,66266.0,66265.0,1.02566964]
[1722304532151,0.00959256,66266.0,66265.0,1.02566964]
[1722304532390,0.02959256,66273.0,66272.0,0.845001]
[1722304532585,0.00959256,66273.0,66272.0,1.02558164]
[1722304533182,0.01959256,66273.0,66272.0,1.02558164]
[1722304533390,0.02959256,66273.0,66272.0,1.02558164]
[1722304533587,0.02959256,66273.0,66272.0,0.6335196]
[1722304534193,0.03159256,66273.0,66272.0,0.6335196]
[1722304534794,0.05525889,66273.0,66272.0,0.6335196]
[1722304534998,0.03159256,66273.0,66272.0,0.6335196]
[1722304535588,0.17269256,66273.0,66272.0,0.6335196]
[1722304535999,0.17269256,66273.0,66272.0,0.1506616]
[1722304536196,0.18080427,66273.0,66272.0,0.1506616]
[1722304536940,0.18080427,66273.0,66272.0,0.0299476]
[1722304537535,0.17080427,66273.0,66272.0,0.0299476]
[1722304537700,0.02959256,66268.0,66267.0,0.241445]
[1722304538104,0.03970427,66268.0,66267.0,0.603615]
[1722304538305,0.06337218,66268.0,66267.0,0.6335626]
[1722304538553,0.03970427,66268.0,66267.0,0.6335626]
[1722304538753,0.03770427,66268.0,66267.0,0.6335626]
[1722304539618,0.03970427,66268.0,66267.0,0.6335626]
[1722304540359,0.03770427,66268.0,66267.0,0.6335626]
[1722304540943,0.03770427,66268.0,66267.0,0.8750096]
[1722304541175,0.01770427,66268.0,66267.0,0.8750096]
[1722304541606,0.03770427,66268.0,66267.0,0.8750096]
[1722304542669,0.06137187,66268.0,66267.0,0.8750096]
[1722304543060,0.03770427,66268.0,66267.0,0.845062]
[1722304543262,0.03970427,66268.0,66267.0,0.845062]
[1722304543628,0.01770427,66268.0,66267.0,0.99569504]
[1722304543833,0.00959256,66268.0,66267.0,0.99569504]
[1722304544256,0.01959256,66268.0,66267.0,0.99569504]
[1722304544422,0.02959256,66268.0,66267.0,0.99569504]
[1722304544824,0.00959256,66268.0,66267.0,0.99569504]
[1722304546384,0.0332593,66268.0,66267.0,0.99569504]
[1722304547507,0.01959256,66268.0,66267.0,0.99569504]
[1722304547798,0.00959256,66268.0,66267.0,1.23714204]
[1722304548028,0.00959256,66275.0,66268.0,0.0623]
[1722304548273,0.00959256,66274.0,66273.0,0.603562]
[1722304548510,0.01959256,66274.0,66273.0,1.23704504]
[1722304548675,0.00959256,66274.0,66273.0,1.23704504]
[1722304548890,0.01959256,66274.0,66273.0,0.99562004]
[1722304549089,0.02959256,66274.0,66273.0,0.99562004]
[1722304549314,0.11489256,66274.0,66273.0,0.603562]
[1722304549619,0.17757295,66274.0,66273.0,0.603562]
[1722304549763,0.12308429,66274.0,66273.0,0.603562]
[1722304549964,0.17757479,66274.0,66273.0,0.603562]
[1722304550144,0.18576652,66274.0,66273.0,0.362137]
[1722304550351,0.03159256,66268.0,66267.0,0.0299476]
[1722304550550,0.10693972,66268.0,66267.0,0.6335646]
[1722304550759,0.20148105,66268.0,66267.0,0.6335646]
[1722304550942,0.20148105,66268.0,66267.0,0.8750116]
[1722304551155,0.19148105,66268.0,66267.0,0.8750116]
[1722304551794,0.18948105,66268.0,66267.0,0.8750116]
[1722304552023,0.17948105,66268.0,66267.0,0.8750116]
[1722304552583,0.15581368,66268.0,66267.0,0.8750116]
[1722304552801,0.09313145,66268.0,66267.0,0.8750116]
[1722304553001,0.15581492,66268.0,66267.0,0.8750116]
[1722304553222,0.11313145,66268.0,66267.0,0.8750116]
[1722304553735,0.17581474,66268.0,66267.0,0.8750116]
[1722304553950,0.17781474,66268.0,66267.0,0.8750116]
[1722304554148,0.17781474,66268.0,66267.0,0.6335646]
[1722304554349,0.17581474,66268.0,66267.0,0.6335646]
[1722304554610,0.17581474,66268.0,66267.0,0.8750116]
[1722304554819,0.11313145,66268.0,66267.0,0.8750116]
[1722304555072,0.17581658,66268.0,66267.0,0.8750116]
[1722304555526,0.08046942,66268.0,66267.0,1.02564464]
[1722304555724,0.08046942,66268.0,66267.0,0.99569704]
[1722304555934,0.07087686,66268.0,66267.0,0.99569704]
[1722304556149,0.00959256,66270.0,66269.0,0.84504]
[1722304556362,0.00959256,66270.0,66269.0,1.10358407]
[1722304556993,0.00959256,66270.0,66269.0,1.3446094]
[1722304557207,0.03325792,66270.0,66269.0,1.3446094]
[1722304558786,0.04325792,66270.0,66269.0,1.3446094]
[1722304558997,0.04325792,66270.0,66269.0,1.34430316]
[1722304559169,0.03325792,66270.0,66269.0,1.34430316]
[1722304559570,0.02366536,66270.0,66269.0,1.34430316]
[1722304559782,0.02366536,66270.0,66269.0,1.44430316]
[1722304560199,0.02366536,66270.0,66269.0,1.70874316]
[1722304561325,0.02366536,66270.0,66269.0,1.70846362]
[1722304561532,0.02366536,66270.0,66269.0,1.96947697]
[1722304561533,3.6e-07,66270.0,66269.0,1.96947697]
[1722304561779,0.07534716,66281.0,66280.0,1.0863]
[1722304562090,0.07534716,66281.0,66280.0,1.40694362]
[1722304562878,0.07534716,66281.0,66280.0,1.16554362]
[1722304563197,0.07534716,66281.0,66280.0,1.02548064]
[1722304563605,0.09493972,66281.0,66280.0,1.02548064]
[1722304563808,0.10493972,66281.0,66280.0,1.02548064]
[1722304564186,0.08493972,66281.0,66280.0,1.02548064]
[1722304565380,0.09493972,66281.0,66280.0,1.02548064]
[1722304565590,0.08493972,66281.0,66280.0,1.02548064]
[1722304567022,0.08493972,66281.0,66280.0,0.99553304]
[1722304568485,0.08493972,66281.0,66280.0,1.0730623]
[1722304569059,0.00959256,66287.0,66283.0,0.241389]
[1722304569230,0.00959256,66285.0,66284.0,0.51572703]
[1722304569435,0.00959256,66285.0,66284.0,0.99548004]
[1722304569436,0.02959256,66285.0,66284.0,0.99548004]
[1722304571071,0.00959256,66285.0,66284.0,0.99548004]
[1722304571910,0.02959256,66285.0,66284.0,0.99548004]
[1722304572109,0.00959256,66285.0,66284.0,0.99548004]
[1722304573031,0.00959256,66286.0,66285.0,0.844833]
[1722304573234,0.00959256,66286.0,66285.0,0.99546604]
[1722304573471,0.0633,66294.0,66285.0,0.99546604]
[1722304573472,0.0862,66301.0,66288.0,0.1]
[1722304573689,0.01,66301.0,66300.0,0.681017]
[1722304573888,0.00893228,66302.0,66300.0,0.681017]
[1722304573889,0.00893228,66302.0,66301.0,0.84463]
[1722304574021,0.00893228,66302.0,66301.0,1.77389603]
[1722304574226,0.00083,66304.0,66303.0,0.70329]
[1722304574558,0.00083,66304.0,66303.0,1.75684197]
[1722304574704,0.00083,66304.0,66303.0,1.77984197]
[1722304574910,0.00083,66304.0,66303.0,1.84494197]
[1722304575125,0.00083,66304.0,66303.0,1.9273807]
[1722304576645,0.00083,66304.0,66303.0,1.92735056]
[1722304577222,0.00183,66304.0,66303.0,1.92835056]
[1722304577576,0.00083,66304.0,66303.0,1.92735056]
[1722304577770,0.00083,66304.0,66303.0,1.53887845]
[1722304578022,0.00183,66304.0,66303.0,1.46055504]
[1722304578569,0.00183,66304.0,66303.0,1.45955504]
[1722304578570,0.00083,66304.0,66303.0,1.45955504]
[1722304579191,0.00183,66304.0,66303.0,1.45955504]
[1722304579803,0.02548065,66304.0,66303.0,1.71170375]
[1722304580477,0.02448065,66304.0,66303.0,1.71170375]
[1722304580708,0.02548065,66304.0,66303.0,1.71270375]
[1722304581312,0.02548065,66304.0,66303.0,1.47098031]
[1722304581467,0.02548065,66304.0,66303.0,1.47138775]
[1722304581668,0.02448065,66304.0,66303.0,1.47038775]
[1722304581878,0.02448065,66304.0,66303.0,1.47138775]
[1722304581879,0.02548065,66304.0,66303.0,1.47138775]
[1722304583010,0.02548065,66304.0,66303.0,1.47098031]
[1722304583213,0.02548065,66304.0,66303.0,1.20666431]
[1722304583610,0.02448065,66304.0,66303.0,1.20566431]
[1722304584624,0.02548065,66304.0,66303.0,1.20666431]
[1722304585011,0.02448065,66304.0,66303.0,1.20566431]
[1722304585207,0.02448065,66304.0,66303.0,1.61249731]
[1722304585464,0.02548065,66304.0,66303.0,1.61349731]
[1722304588448,0.02548065,66304.0,66303.0,1.67839731]
[1722304588796,0.02448065,66304.0,66303.0,1.75619906]
[1722304588986,0.02548065,66304.0,66303.0,1.75719906]
[1722304589224,0.02548065,66304.0,66303.0,1.75594487]
[1722304589481,0.02548065,66304.0,66303.0,1.75635231]
[1722304589707,0.02448065,66304.0,66303.0,1.75535231]
[1722304589960,0.02448065,66304.0,66303.0,1.75635231]
[1722304589961,0.02548065,66304.0,66303.0,1.75635231]
[1722304590160,0.02548065,66304.0,66303.0,1.75634858]
[1722304590357,0.02448065,66304.0,66303.0,1.75534858]
[1722304590487,0.02448065,66304.0,66303.0,1.76934858]
[1722304590488,0.02548065,66304.0,66303.0,1.76934858]
[1722304590702,0.02548065,66304.0,66303.0,1.75634858]
[1722304590912,0.02548065,66304.0,66303.0,1.75594114]
[1722304591105,0.02648065,66304.0,66303.0,1.54539731]
[1722304591510,0.02648065,66304.0,66303.0,1.62307264]
[1722304592309,0.02648065,66304.0,66303.0,1.62272868]
[1722304592516,0.02648065,66304.0,66303.0,1.54539731]
[1722304593111,0.02548065,66304.0,66303.0,1.53039731]
[1722304593315,0.02448065,66304.0,66303.0,1.53039731]
[1722304593550,0.02648065,66304.0,66303.0,1.54539731]
[1722304593927,0.02548065,66304.0,66303.0,1.53039731]
[1722304594131,0.02548065,66304.0,66303.0,1.28908131]
[1722304594350,0.16958065,66304.0,66303.0,1.28108131]
[1722304594553,0.17758065,66304.0,66303.0,1.26708131]
[1722304595000,0.17858065,66304.0,66303.0,1.28108131]
[1722304595616,0.17758065,66304.0,66303.0,1.28008131]
[1722304595795,0.16758065,66304.0,66303.0,1.28008131]
[1722304596378,0.10198065,66304.0,66303.0,1.26608131]
[1722304596586,0.10298065,66304.0,66303.0,1.28008131]
[1722304597227,0.02548065,66304.0,66303.0,1.28008131]
[1722304597418,0.02648065,66304.0,66303.0,1.28108131]
[1722304597947,0.02548065,66304.0,66303.0,1.28008131]
[1722304598378,0.02648065,66304.0,66303.0,1.52239731]
[1722304598603,0.02648065,66304.0,66303.0,1.28108131]
[1722304598819,0.02648065,66304.0,66303.0,1.30408131]